fUST/lending_fUST_20250602
["ID","MTS","AMOUNT","RATE_DAILY","PERIOD"]
[363666771,1748805042569,-3000.0,0.0002108,2]
[363666774,1748805042580,-497.78,0.00021083,2]
[363666776,1748805042590,-828.37,0.00021083,2]
[363666778,1748805042600,-624.53,0.00021083,2]
[363666780,1748805042610,-594.52,0.00021083,2]
[363666782,1748805042620,-430.0,0.00021083,2]
[363666784,1748805042629,-543.32,0.00021083,2]
[363666786,1748805042639,-482.89494419,0.00021083,2]
[363666788,1748805042648,-430.0,0.00021083,2]
[363666790,1748805042658,-2390.62683851,0.0002109,2]
[363666795,1748805042699,-354.0322733,0.0002109,2]
[363667273,1748805048278,-0.29351447,0.00019313,2]
[363667276,1748805048292,-4999.70648553,0.00019313,2]
[363667278,1748805048304,-300.0,0.00019712,2]
[363667280,1748805048316,-255.34088819,0.0002109,2]
[363667282,1748805048327,-510.25,0.0002109,10]
[363667285,1748805048339,-430.0,0.00021093,2]
[363667287,1748805048351,-588.88,0.00021093,2]
[363667289,1748805048362,-548.49,0.00021094,2]
[363667291,1748805048374,-633.3,0.00021094,2]
[363667294,1748805048386,-3000.0,0.000211,2]
[363667296,1748805048398,-151.0,0.000211,4]
[363667298,1748805048409,-3000.0,0.0002111,2]
[363667300,1748805048422,-3000.0,0.0002112,2]
[363667302,1748805048433,-3000.0,0.0002113,2]
[363667305,1748805048444,-3000.0,0.0002114,2]
[363667307,1748805048458,-3000.0,0.0002115,2]
[363667309,1748805048469,-500.0,0.00021153,2]
[363667311,1748805048481,-500.0,0.00021153,2]
[363667314,1748805048492,-500.0,0.00021153,2]
[363667316,1748805048503,-3000.0,0.0002116,2]
[363667318,1748805048513,-3000.0,0.0002117,2]
[363667320,1748805048522,-3000.0,0.0002118,2]
[363667322,1748805048533,-500.0,0.00021189,2]
[363667324,1748805048542,-500.0,0.00021189,2]
[363667326,1748805048552,-500.0,0.00021189,2]
[363667328,1748805048562,-500.0,0.00021189,2]
[363667330,1748805048572,-500.0,0.00021189,2]
[363667332,1748805048581,-257.50456073,0.00021189,2]
[363667334,1748805048591,-632.78929956,0.00021189,2]
[363667336,1748805048600,-632.78929956,0.00021189,2]
[363667338,1748805048610,-632.78929956,0.00021189,2]
[363667340,1748805048620,-500.0,0.00021189,2]
[363667342,1748805048630,-632.78929956,0.00021189,2]
[363667344,1748805048639,-632.78929956,0.00021189,2]
[363667346,1748805048649,-632.78929956,0.00021189,2]
[363667365,1748805048823,-632.78929956,0.00021189,2]
[363667367,1748805048833,-500.0,0.00021189,2]
[363667369,1748805048842,-632.78929956,0.00021189,2]
[363667370,1748805048852,-500.0,0.00021189,2]
[363667373,1748805048862,-152.02348749,0.00021189,2]
[363667375,1748805048872,-632.78929956,0.00021189,2]
[363667377,1748805048882,-500.0,0.00021189,2]
[363667378,1748805048891,-632.78929956,0.00021189,2]
[363667380,1748805048902,-632.78929956,0.00021189,2]
[363667382,1748805048912,-632.78929956,0.00021189,2]
[363667385,1748805048922,-632.78929956,0.00021189,2]
[363667387,1748805048932,-632.78929956,0.00021189,2]
[363667388,1748805048941,-1601.87862662,0.0002119,2]
[363667398,1748805049021,-1398.12137338,0.0002119,2]
[363667400,1748805049031,-245.80872237,0.000212,2]
[363667543,1748805073241,7277.50594956,0.00024658,120]
[363667544,1748805091807,3427.0,0.0002328,120]
[363667545,1748805092205,150.5,0.0002328,120]
[363667546,1748805092256,3427.0,0.0002327,120]
[363667547,1748805092651,150.5,0.0002327,120]
[363667548,1748805092706,3427.0,0.0002326,120]
[363667549,1748805093274,270.41,0.0002326,120]
[363667550,1748805093306,3427.0,0.00023788,120]
[363667551,1748805093649,3427.0,0.00023778,120]
[363667552,1748805094504,3427.0,0.00023768,120]
[363667553,1748805094964,3427.0,0.00023789,120]
[363667554,1748805095409,3427.0,0.00023779,120]
[363667555,1748805095854,3427.0,0.0002386,120]
[363667556,1748805096300,3429.0,0.0002385,120]
[363667557,1748805114405,500.0,0.00022799,120]
[363667558,1748805115181,500.0,0.00022799,120]
[363667559,1748805115950,500.0,0.00022799,120]
[363667560,1748805116763,500.0,0.00022799,120]
[363667561,1748805117537,500.0,0.00022799,120]
[363667562,1748805118339,500.0,0.00022799,120]
[363667563,1748805119122,500.0,0.00022799,120]
[363667564,1748805119915,500.0,0.00022799,120]
[363667565,1748805120724,500.0,0.00022799,120]
[363667566,1748805121512,500.0,0.00022799,120]
[363667567,1748805122301,500.0,0.00022799,120]
[363667568,1748805123107,500.0,0.00022799,120]
[363667569,1748805123883,500.0,0.00022799,120]
[363667571,1748805124657,500.0,0.00022799,120]
[363667572,1748805125433,500.0,0.00022799,120]
[363667573,1748805126385,500.0,0.00022799,120]
[363667574,1748805127169,500.0,0.00022799,120]
[363667575,1748805127952,500.0,0.00022799,120]
[363667576,1748805128707,500.0,0.00022799,120]
[363667577,1748805129479,500.0,0.00022799,120]
[363667578,1748805130259,500.0,0.00022799,120]
[363667579,1748805131066,500.0,0.00022799,120]
[363667580,1748805131868,500.0,0.00022799,120]
[363667581,1748805132661,500.0,0.00022799,120]
[363667582,1748805133454,500.0,0.00022799,120]
[363667583,1748805134223,500.0,0.00022799,120]
[363667584,1748805135003,500.0,0.00022799,120]
[363667585,1748805135787,500.0,0.00022799,120]
[363667586,1748805136575,500.0,0.00022799,120]
[363667587,1748805137727,500.0,0.00022799,120]
[363667588,1748805138492,500.0,0.00022799,120]
[363667589,1748805139278,500.0,0.00022799,120]
[363667590,1748805140040,198.69,0.00022799,120]
[363667592,1748805176926,-430.0,0.00016699,2]
[363667593,1748805176953,-430.0,0.00016699,2]
[363667594,1748805176977,-430.0,0.00016709,2]
[363667595,1748805177001,-430.0,0.00016709,2]
[363667596,1748805177026,-430.0,0.00016709,2]
[363667597,1748805177048,-511.89,0.00016709,2]
[363667598,1748805177073,-430.0,0.00016973,2]
[363667599,1748805177100,-153.11,0.00016983,2]
[363667601,1748805270743,200.0,0.00023877,120]
[363667602,1748805303135,851.0,0.00024658,120]
[363667603,1748805303193,408.0,0.00024658,120]
[363667604,1748805329370,184.477963,0.00017159,61]
[363667605,1748805329579,184.477963,0.00017159,120]
[363667606,1748805362733,164.2688301,0.0002386,120]
[363667607,1748805367102,160.28578917,0.0002386,120]
[363667608,1748805450744,200.0,0.00024157,120]
[363667609,1748805482747,164.2688301,0.0002386,120]
[363667611,1748805510730,200.0,0.00022992,120]
[363667612,1748805562757,-5000.0,0.00015735,2]
[363667613,1748805562780,-300.0,0.00015892,2]
[363667614,1748805562802,-7203.0,0.00015893,2]
[363667615,1748805570749,200.0,0.00024103,120]
[363667616,1748805602581,164.2688301,0.00023864,120]
[363667617,1748805630753,200.0,0.00023387,120]
[363667618,1748805655054,168.06472094,0.0001552,2]
[363667619,1748805690718,200.0,0.00023686,120]
[363667620,1748805750724,200.0,0.00023192,120]
[363667621,1748805761967,5000.0,0.0001552,2]
[363667622,1748805776161,5386.0850566,0.00015031,2]
[363667623,1748805780291,24900.0,0.00015024,2]
[363667624,1748805870738,200.0,0.00023494,120]
[363667626,1748805930834,200.0,0.0002406,120]
[363667634,1748805990796,200.0,0.00024549,120]
[363667637,1748806025940,1302.5366204,0.00015015,2]
[363667641,1748806039674,530.5066883,0.00014999,2]
[363667642,1748806051318,200.0,0.0002288,120]
[363667643,1748806066967,161.09416152,0.000246,120]
[363667645,1748806113997,1289.00864193,0.00024,120]
[363667646,1748806121657,435.37416283,0.00023,120]
[363667647,1748806121777,332.55984873,0.0002191,120]
[363667648,1748806152593,5000.0,0.0001552,2]
[363667650,1748806168470,185.646777,0.00013699,2]
[363667677,1748806232792,-1200.0,0.00015734,2]
[363667679,1748806232802,-576.38834833,0.00015735,2]
[363667681,1748806232814,-510.9,0.00015735,2]
[363667682,1748806232844,-3912.71165167,0.00015735,2]
[363667683,1748806232854,-350.67268271,0.00015735,2]
[363667684,1748806232863,-292.9567591,0.00015893,2]
[363667685,1748806232873,-289.56434135,0.00015899,2]
[363667686,1748806232882,-300.0,0.00015998,2]
[363667687,1748806232892,-300.0,0.00015998,2]
[363667688,1748806232902,-300.0,0.00015998,2]
[363667689,1748806232912,-300.0,0.00015998,2]
[363667690,1748806232921,-300.0,0.00015998,2]
[363667691,1748806232932,-24582.89456515,0.00015999,2]
[363667692,1748806232944,-1960.0,0.00015999,2]
[363667693,1748806232955,-1249.35049649,0.00015999,2]
[363667694,1748806232967,-895.04723736,0.00015999,2]
[363667695,1748806233013,-16450.30177535,0.00015999,2]
[363667696,1748806233027,-4862.40592565,0.00015999,2]
[363667697,1748806233037,-194.03604701,0.00016,2]
[363667698,1748806233047,-7721.79646484,0.00016,2]
[363667699,1748806233057,-4960.1544,0.00016,2]
[363667700,1748806233068,-2000.0,0.00016063,2]
[363667701,1748806233079,-5000.0,0.00016187,2]
[363667702,1748806233090,-430.0,0.00016438,2]
[363667703,1748806233102,-430.0,0.00016438,2]
[363667704,1748806233111,-430.0,0.00016438,2]
[363667705,1748806233122,-506.82261158,0.00016438,2]
[363667706,1748806233132,-430.0,0.00016438,2]
[363667707,1748806233141,-430.0,0.00016438,2]
[363667708,1748806233151,-430.0,0.00016438,2]
[363667709,1748806233160,-430.0,0.00016438,2]
[363667710,1748806233171,-430.0,0.00016438,2]
[363667711,1748806233181,-430.0,0.00016438,2]
[363667712,1748806233191,-441.18,0.00016438,2]
[363667713,1748806233200,-430.0,0.00016438,2]
[363667714,1748806233210,-430.0,0.00016438,2]
[363667715,1748806233220,-476.11,0.00016438,2]
[363667716,1748806233230,-430.0,0.00016438,2]
[363667717,1748806233240,-430.0,0.00016438,2]
[363667718,1748806233251,-574.47,0.00016438,2]
[363667719,1748806233261,-430.0,0.00016438,2]
[363667720,1748806233271,-430.0,0.00016438,2]
[363667721,1748806233280,-517.38,0.00016438,2]
[363667722,1748806233290,-430.0,0.00016438,2]
[363667723,1748806233300,-430.0,0.00016438,2]
[363667724,1748806233309,-430.0,0.00016438,2]
[363667725,1748806233319,-430.0,0.00016438,2]
[363667726,1748806233329,-430.0,0.00016438,2]
[363667727,1748806233339,-430.0,0.00016438,2]
[363667728,1748806233349,-430.0,0.00016438,2]
[363667729,1748806233359,-430.0,0.00016438,2]
[363667730,1748806233369,-430.0,0.00016438,2]
[363667731,1748806233379,-430.0,0.00016438,2]
[363667732,1748806233389,-430.0,0.00016438,2]
[363667733,1748806233399,-430.0,0.00016438,2]
[363667734,1748806233409,-430.0,0.00016438,2]
[363667735,1748806233419,-430.0,0.00016438,2]
[363667736,1748806233429,-430.0,0.00016438,2]
[363667737,1748806233439,-430.0,0.00016438,2]
[363667738,1748806233449,-430.0,0.00016438,2]
[363667739,1748806233459,-430.0,0.00016438,2]
[363667740,1748806233469,-430.0,0.00016438,2]
[363667741,1748806233479,-430.0,0.00016438,2]
[363667742,1748806233489,-430.0,0.00016438,2]
[363667743,1748806233499,-430.0,0.00016438,2]
[363667744,1748806233509,-430.0,0.00016438,2]
[363667745,1748806233519,-430.0,0.00016438,2]
[363667746,1748806233530,-430.0,0.00016438,2]
[363667747,1748806233540,-430.0,0.00016438,2]
[363667748,1748806233550,-430.0,0.00016438,2]
[363667749,1748806233561,-430.0,0.00016438,2]
[363667750,1748806233572,-430.0,0.00016438,2]
[363667751,1748806233582,-430.0,0.00016438,2]
[363667752,1748806233592,-430.0,0.00016438,2]
[363667753,1748806233602,-430.0,0.00016438,2]
[363667754,1748806233613,-430.0,0.00016438,2]
[363667755,1748806233623,-430.0,0.00016438,2]
[363667756,1748806233634,-430.0,0.00016438,2]
[363667757,1748806233644,-500.0,0.00016438,2]
[363667758,1748806233655,-430.0,0.00016438,2]
[363667759,1748806233665,-430.0,0.00016438,2]
[363667760,1748806233675,-430.0,0.00016438,2]
[363667761,1748806233685,-430.0,0.00016438,2]
[363667762,1748806233695,-430.0,0.00016438,2]
[363667763,1748806233705,-430.0,0.00016438,2]
[363667764,1748806233715,-705.32,0.00016438,2]
[363667765,1748806233724,-430.0,0.00016438,2]
[363667766,1748806233734,-430.0,0.00016438,2]
[363667767,1748806233744,-430.0,0.00016438,2]
[363667768,1748806233756,-430.0,0.00016438,2]
[363667769,1748806233766,-430.0,0.00016438,2]
[363667770,1748806233776,-503.9,0.00016438,2]
[363667771,1748806233786,-430.0,0.00016438,2]
[363667772,1748806233796,-430.0,0.00016438,2]
[363667773,1748806233806,-1047.38,0.00016438,2]
[363667774,1748806233816,-430.0,0.00016438,2]
[363667775,1748806233826,-430.0,0.00016438,2]
[363667776,1748806233835,-1069.0,0.00016438,2]
[363667777,1748806233845,-430.0,0.00016438,2]
[363667778,1748806233855,-430.0,0.00016438,2]
[363667779,1748806233866,-500.42,0.00016438,2]
[363667780,1748806233876,-430.0,0.00016438,2]
[363667781,1748806233886,-430.0,0.00016438,2]
[363667782,1748806233896,-430.0,0.00016438,2]
[363667783,1748806233905,-966.98,0.00016438,2]
[363667784,1748806233914,-430.0,0.00016438,2]
[363667785,1748806233924,-430.0,0.00016438,2]
[363667786,1748806233934,-292.2737234,0.00016438,2]
[363667787,1748806233945,-430.0,0.00016438,2]
[363667788,1748806233955,-430.0,0.00016438,2]
[363667789,1748806233965,-430.0,0.00016438,2]
[363667790,1748806233975,-430.0,0.00016438,2]
[363667791,1748806233985,-430.0,0.00016438,2]
[363667792,1748806233996,-1377.76,0.00016438,2]
[363667793,1748806234007,-430.0,0.00016438,2]
[363667794,1748806234017,-430.0,0.00016438,2]
[363667795,1748806234027,-430.0,0.00016438,2]
[363667796,1748806234037,-430.0,0.00016438,2]
[363667797,1748806234047,-430.0,0.00016438,2]
[363667798,1748806234058,-622.88,0.00016438,2]
[363667799,1748806234068,-430.0,0.00016438,2]
[363667800,1748806234078,-430.0,0.00016438,2]
[363667801,1748806234087,-430.0,0.00016438,2]
[363667802,1748806234098,-500.0,0.00016438,2]
[363667803,1748806234111,-200.84248221,0.00016599,2]
[363667804,1748806234122,-754.71,0.00016702,3]
[363667805,1748806234133,-430.0,0.00016712,2]
[363667806,1748806234143,-430.0,0.00016712,2]
[363667807,1748806234153,-176.99,0.00016712,2]
[363667808,1748806234162,-430.0,0.00016712,2]
[363667809,1748806234172,-430.0,0.00016712,2]
[363667810,1748806234182,-430.0,0.00016712,2]
[363667811,1748806234192,-284.78,0.00016712,2]
[363667812,1748806234201,-178.53,0.00016712,2]
[363667813,1748806234211,-430.0,0.00016712,2]
[363667814,1748806234220,-227.74,0.00016712,2]
[363667815,1748806234230,-430.0,0.00016712,2]
[363667816,1748806234239,-430.0,0.00016712,2]
[363667817,1748806234250,-430.0,0.00016712,2]
[363667818,1748806234260,-430.0,0.00016712,2]
[363667819,1748806234270,-552.76984346,0.00016712,2]
[363667820,1748806234281,-525.74,0.00016712,2]
[363667821,1748806234290,-430.0,0.00016712,2]
[363667822,1748806234300,-430.0,0.00016712,2]
[363667823,1748806234309,-430.0,0.00016712,2]
[363667824,1748806234319,-430.0,0.00016712,2]
[363667825,1748806234328,-430.0,0.00016712,2]
[363667826,1748806234339,-430.0,0.00016712,2]
[363667827,1748806234348,-200.17537172,0.00016712,2]
[363667828,1748806234358,-154.56609765,0.00016712,2]
[363667829,1748806234368,-430.0,0.00016712,2]
[363667830,1748806234379,-430.0,0.00016712,2]
[363667831,1748806234388,-430.0,0.00016712,2]
[363667832,1748806234398,-430.0,0.00016712,2]
[363667833,1748806234408,-430.0,0.00016712,2]
[363667834,1748806234417,-705.32,0.00016712,2]
[363667835,1748806234426,-430.0,0.00016712,2]
[363667836,1748806234436,-430.0,0.00016712,2]
[363667837,1748806234445,-430.0,0.00016712,2]
[363667838,1748806234455,-430.0,0.00016712,2]
[363667839,1748806234464,-161.57878815,0.00016712,2]
[363667840,1748806234473,-430.0,0.00016712,2]
[363667841,1748806234483,-430.0,0.00016712,2]
[363667842,1748806234493,-1047.38,0.00016712,2]
[363667843,1748806234502,-430.0,0.00016712,2]
[363667844,1748806234512,-430.0,0.00016712,2]
[363667845,1748806234522,-1069.0,0.00016712,2]
[363667846,1748806234531,-430.0,0.00016712,2]
[363667847,1748806234541,-430.0,0.00016712,2]
[363667848,1748806234551,-500.42,0.00016712,2]
[363667849,1748806234560,-430.0,0.00016712,2]
[363667850,1748806234570,-430.0,0.00016712,2]
[363667851,1748806234579,-966.98,0.00016712,2]
[363667852,1748806234589,-452.31209915,0.00016712,2]
[363667853,1748806234598,-430.0,0.00016712,2]
[363667854,1748806234608,-430.0,0.00016712,2]
[363667855,1748806234618,-430.0,0.00016712,2]
[363667856,1748806234627,-320.36280278,0.00016712,2]
[363667857,1748806234637,-430.0,0.00016712,2]
[363667858,1748806234646,-1377.76,0.00016712,2]
[363667859,1748806234657,-430.0,0.00016712,2]
[363667860,1748806234666,-430.0,0.00016712,2]
[363667861,1748806234676,-430.0,0.00016712,2]
[363667862,1748806234685,-430.0,0.00016712,2]
[363667863,1748806234695,-430.0,0.00016712,2]
[363667864,1748806234704,-622.88,0.00016712,2]
[363667865,1748806234713,-430.0,0.00016712,2]
[363667866,1748806234723,-500.0,0.00016712,2]
[363667867,1748806234732,-4001.89343018,0.000169,2]
[363667868,1748806234741,-430.0,0.00016986,2]
[363667869,1748806234751,-430.0,0.00016986,2]
[363667870,1748806234761,-430.0,0.00016986,2]
[363667871,1748806234770,-371.65,0.00016986,2]
[363667872,1748806234780,-430.0,0.00016986,2]
[363667873,1748806234790,-430.0,0.00016986,2]
[363667874,1748806234799,-430.0,0.00016986,2]
[363667875,1748806234809,-559.14,0.00016986,2]
[363667876,1748806234818,-430.0,0.00016986,2]
[363667877,1748806234828,-430.0,0.00016986,2]
[363667878,1748806234838,-430.0,0.00016986,2]
[363667879,1748806234848,-430.0,0.00016986,2]
[363667880,1748806234857,-430.0,0.00016986,2]
[363667881,1748806234867,-430.0,0.00016986,2]
[363667882,1748806234876,-430.0,0.00016986,2]
[363667883,1748806234886,-430.0,0.00016986,2]
[363667884,1748806234896,-705.32,0.00016986,2]
[363667885,1748806234906,-430.0,0.00016986,2]
[363667886,1748806234916,-430.0,0.00016986,2]
[363667887,1748806234926,-479.75,0.00016986,2]
[363667888,1748806234935,-430.0,0.00016986,2]
[363667889,1748806234945,-430.0,0.00016986,2]
[363667890,1748806234955,-430.0,0.00016986,2]
[363667891,1748806234965,-1047.38,0.00016986,2]
[363667892,1748806234975,-430.0,0.00016986,2]
[363667893,1748806234984,-1069.0,0.00016986,2]
[363667894,1748806234994,-430.0,0.00016986,2]
[363667895,1748806235005,-430.0,0.00016986,2]
[363667896,1748806235015,-500.42,0.00016986,2]
[363667897,1748806235024,-430.0,0.00016986,2]
[363667898,1748806235034,-296.01600023,0.00016986,2]
[363667899,1748806235043,-966.98,0.00016986,2]
[363667900,1748806235052,-430.0,0.00016986,2]
[363667901,1748806235062,-430.0,0.00016986,2]
[363667902,1748806235071,-430.0,0.00016986,2]
[363667903,1748806235081,-430.0,0.00016986,2]
[363667904,1748806235090,-1377.76,0.00016986,2]
[363667905,1748806235099,-430.0,0.00016986,2]
[363667906,1748806235109,-430.0,0.00016986,2]
[363667907,1748806235118,-430.0,0.00016986,2]
[363667908,1748806235127,-430.0,0.00016986,2]
[363667909,1748806235137,-622.88,0.00016986,2]
[363667910,1748806235146,-430.0,0.00016986,2]
[363667911,1748806235156,-500.0,0.00017006,2]
[363667912,1748806235165,-289.56434135,0.00017024,2]
[363667913,1748806235174,-500.0,0.0001712,2]
[363667914,1748806235184,-500.0,0.0001712,2]
[363667915,1748806235193,-501.44768991,0.0001712,2]
[363667916,1748806235202,-500.0,0.0001712,2]
[363667917,1748806235212,-182.0,0.00017141,2]
[363667918,1748806235221,-4001.89342993,0.00017141,2]
[363667919,1748806235230,-184.477963,0.00017159,2]
[363667920,1748806235239,-3907.07482298,0.0001716,2]
[363667921,1748806235250,-501.63539255,0.00017175,2]
[363667922,1748806235260,-430.0,0.0001726,2]
[363667923,1748806235270,-430.0,0.0001726,2]
[363667924,1748806235279,-430.0,0.0001726,2]
[363667925,1748806235288,-430.0,0.0001726,2]
[363667926,1748806235297,-430.0,0.0001726,2]
[363667927,1748806235307,-430.0,0.0001726,2]
[363667928,1748806235316,-218.54,0.0001726,2]
[363667929,1748806235326,-430.0,0.0001726,2]
[363667930,1748806235335,-430.0,0.0001726,2]
[363667931,1748806235345,-350.42,0.0001726,2]
[363667932,1748806235354,-430.0,0.0001726,2]
[363667933,1748806235364,-430.0,0.0001726,2]
[363667934,1748806235373,-430.0,0.0001726,2]
[363667935,1748806235383,-705.32,0.0001726,2]
[363667936,1748806235393,-430.0,0.0001726,2]
[363667937,1748806235402,-430.0,0.0001726,2]
[363667938,1748806235411,-1047.38,0.0001726,2]
[363667939,1748806235421,-1069.0,0.0001726,2]
[363667940,1748806235430,-430.0,0.0001726,2]
[363667941,1748806235544,-430.0,0.0001726,2]
[363667942,1748806235555,-500.42,0.0001726,2]
[363667943,1748806235565,-430.0,0.0001726,2]
[363667944,1748806235574,-966.98,0.0001726,2]
[363667945,1748806235583,-430.0,0.0001726,2]
[363667946,1748806235593,-1377.76,0.0001726,2]
[363667947,1748806235602,-430.0,0.0001726,2]
[363667948,1748806235612,-528.86552136,0.0001726,2]
[363667949,1748806235621,-622.88,0.0001726,2]
[363667950,1748806235630,-430.0,0.0001726,2]
[363667951,1748806235640,-1680.0,0.00017294,2]
[363667952,1748806235650,-3026.0,0.00017383,2]
[363667953,1748806235659,-3026.0,0.00017383,2]
[363667954,1748806235668,-3026.0,0.00017383,2]
[363667955,1748806235678,-3026.0,0.00017383,2]
[363667956,1748806235687,-4001.89342993,0.00017383,2]
[363667957,1748806235697,-420.0,0.00017491,2]
[363667958,1748806235706,-420.0,0.00017491,2]
[363667959,1748806235716,-420.0,0.00017491,2]
[363667960,1748806235725,-420.0,0.00017491,2]
[363667961,1748806235735,-420.0,0.00017491,2]
[363667962,1748806235744,-430.0,0.00017534,2]
[363667963,1748806235754,-430.0,0.00017534,2]
[363667964,1748806235763,-430.0,0.00017534,2]
[363667965,1748806235773,-337.43,0.00017534,2]
[363667966,1748806235782,-430.0,0.00017534,2]
[363667967,1748806235791,-430.0,0.00017534,2]
[363667968,1748806235801,-430.0,0.00017534,2]
[363667969,1748806235810,-430.0,0.00017534,2]
[363667970,1748806235820,-430.0,0.00017534,2]
[363667971,1748806235830,-705.32,0.00017534,2]
[363667972,1748806235839,-430.0,0.00017534,2]
[363667973,1748806235849,-1047.38,0.00017534,2]
[363667974,1748806235859,-1069.0,0.00017534,2]
[363667975,1748806235869,-430.0,0.00017534,2]
[363667976,1748806235879,-500.42,0.00017534,2]
[363667977,1748806235888,-430.0,0.00017534,2]
[363667978,1748806235898,-966.98,0.00017534,2]
[363667979,1748806235907,-430.0,0.00017534,2]
[363667980,1748806235917,-1377.76,0.00017534,2]
[363667981,1748806235926,-203.52,0.00017534,2]
[363667982,1748806235936,-622.88,0.00017534,2]
[363667983,1748806235946,-430.0,0.00017534,2]
[363667984,1748806235955,-4001.89342993,0.00017624,2]
[363667985,1748806235964,-500.0,0.00017668,2]
[363667986,1748806235973,-430.0,0.00017808,2]
[363667987,1748806235983,-430.0,0.00017808,2]
[363667988,1748806235992,-430.0,0.00017808,2]
[363667989,1748806236001,-430.0,0.00017808,2]
[363667990,1748806236010,-430.0,0.00017808,2]
[363667991,1748806236020,-430.0,0.00017808,2]
[363667992,1748806236029,-509.64,0.00017808,2]
[363667993,1748806236038,-251.11,0.00017808,2]
[363667994,1748806236047,-705.32,0.00017808,2]
[363667995,1748806236056,-430.0,0.00017808,2]
[363667996,1748806236066,-1047.38,0.00017808,2]
[363667997,1748806236075,-1069.0,0.00017808,2]
[363667998,1748806236084,-500.42,0.00017808,2]
[363667999,1748806236093,-430.0,0.00017808,2]
[363668000,1748806236103,-966.98,0.00017808,2]
[363668001,1748806236117,-430.0,0.00017808,2]
[363668002,1748806236126,-1377.76,0.00017808,2]
[363668003,1748806236136,-622.88,0.00017808,2]
[363668004,1748806236145,-191.44,0.00017808,2]
[363668005,1748806236155,-4001.89342993,0.00017866,2]
[363668006,1748806236165,-716.24752553,0.00018,2]
[363668007,1748806236174,-160.0,0.00018017,2]
[363668008,1748806236183,-842.5625,0.00018017,2]
[363668009,1748806236193,-160.0,0.00018019,2]
[363668010,1748806236203,-423.51412927,0.00018019,2]
[363668011,1748806236212,-229.3709046,0.00018019,2]
[363668012,1748806236222,-1029.79,0.00018045,2]
[363668013,1748806236231,-1509.42,0.00018072,3]
[363668014,1748806236240,-430.0,0.00018082,2]
[363668015,1748806236250,-430.0,0.00018082,2]
[363668016,1748806236260,-430.0,0.00018082,2]
[363668017,1748806236270,-430.0,0.00018082,2]
[363668018,1748806236279,-430.0,0.00018082,2]
[363668019,1748806236289,-430.0,0.00018082,2]
[363668020,1748806236299,-705.32,0.00018082,2]
[363668021,1748806236308,-441.2,0.00018082,2]
[363668022,1748806236318,-1047.38,0.00018082,2]
[363668023,1748806236327,-1069.0,0.00018082,2]
[363668024,1748806236337,-500.42,0.00018082,2]
[363668025,1748806236347,-430.0,0.00018082,2]
[363668026,1748806236357,-966.98,0.00018082,2]
[363668027,1748806236367,-340.57,0.00018082,2]
[363668028,1748806236376,-1377.76,0.00018082,2]